bitfinex/quotes_SOLUSD_20251116
["timestamp","ask_amount","ask_price","bid_price","bid_amount"]
[1763256472839,11.53162554,139.17,139.14,7.86689808]
[1763256473565,12.24162554,139.17,139.14,7.86689808]
[1763256474070,4.34613473,139.17,139.15,0.68]
[1763256474670,5.05613473,139.17,139.14,7.86689808]
[1763256474961,2.49782812,139.17,139.14,7.86689808]
[1763256475772,1.78782812,139.16,139.13,8.54]
[1763256475954,2.49782812,139.16,139.13,8.54]
[1763256476142,2.49782812,139.16,139.13,9.22]
[1763256476768,1.78782812,139.16,139.14,0.68]
[1763256477551,1.78782812,139.16,139.14,7.86696307]
[1763256478759,1.78782812,139.16,139.14,0.68]
[1763256479273,1.78782812,139.16,139.14,7.8669338]
[1763256480767,1.78782812,139.16,139.14,0.68]
[1763256481470,1.78782812,139.16,139.14,7.86698738]
[1763256481639,1.78782812,139.16,139.14,7.18698738]
[1763256481844,1.78782812,139.16,139.1,7.86880684]
[1763256481845,2.49782812,139.15,139.1,7.86880684]
[1763256482042,0.71,139.17,139.11,2.46782812]
[1763256482266,2.49782812,139.17,139.12,8.54]
[1763256482572,1.78782812,139.16,139.12,9.22]
[1763256482740,1.78782812,139.15,139.13,0.68]
[1763256483555,1.78782812,139.15,139.13,7.86746678]
[1763256484080,1.78782812,139.17,139.14,0.68]
[1763256484370,9.683361,139.17,139.14,0.68]
[1763256484575,1.78782812,139.16,139.14,0.68]
[1763256484878,1.78782812,139.15,139.12,15.72787419]
[1763256485046,1.78782812,139.13,139.12,8.54]
[1763256485250,1.78782812,139.13,139.1,16.40879491]
[1763256485462,2.49782812,139.14,139.1,15.72879491]
[1763256485671,2.49782812,139.14,139.11,0.68]
[1763256486272,2.49782812,139.14,139.11,7.86853765]
[1763256486673,1.78782812,139.13,139.11,7.86853765]
[1763256487975,1.78782812,139.13,139.11,0.68]
[1763256488348,1.78782812,139.13,139.11,7.86854916]
[1763256489861,1.78782812,139.13,139.11,7.18854916]
[1763256490180,2.49782812,139.13,139.1,16.40885101]
[1763256490473,1.78782812,139.14,139.11,0.68]
[1763256490671,2.49782812,139.14,139.11,0.68]
[1763256491176,1.78782812,139.13,139.11,0.68]
[1763256491877,2.49782812,139.12,139.1,8.54]
[1763256492074,8.97486714,139.14,139.06,0.68]
[1763256492075,2.49782812,139.11,139.06,0.68]
[1763256492275,1.78782812,139.08,139.06,16.41095104]
[1763256492977,1.78782812,139.07,139.05,9.65486714]
[1763256493271,1.78782812,139.06,139.04,8.54]
[1763256493486,0.66,139.07,139.04,9.24]
[1763256493683,0.66,139.07,139.04,8.54]
[1763256493684,1.78782812,139.06,139.04,8.54]
[1763256493856,1.78782812,139.06,139.03,7.89255362]
[1763256494475,1.78782812,139.04,139.02,15.73304465]
[1763256494671,1.78782812,139.03,139.02,9.24]
[1763256495170,1.78782812,139.04,139.02,16.43320961]
[1763256496845,1.78782812,139.04,139.02,9.24]
[1763256497051,2.44782812,139.03,139.0,0.1]
[1763256497252,1.78782812,139.02,139.0,9.34]
[1763256497486,1.78782812,139.02,139.0,16.53419817]
[1763256497664,1.78782812,139.02,139.01,0.7]
[1763256498670,1.78782812,139.02,139.01,7.19372706]
[1763256498857,1.78782812,139.02,139.0,8.64]
[1763256499058,1.78782812,139.02,139.0,16.53403401]
[1763256500375,1.78782812,139.02,139.01,0.7]
[1763256500556,1.78782812,139.02,139.0,15.83403401]
[1763256500760,1.78782812,139.02,139.0,16.53403401]
[1763256500957,1.78782812,139.02,139.0,9.34]
[1763256501159,1.78782812,139.02,139.0,16.53423039]
[1763256504879,2.79924176,139.02,139.0,16.53423039]
[1763256505774,2.79924176,139.04,139.01,0.7]
[1763256505955,2.79924176,139.05,139.01,0.7]
[1763256506156,106.99924176,139.06,139.02,11.33924176]
[1763256506356,2.79924176,139.06,139.02,11.33924176]
[1763256506556,2.79924176,139.06,139.03,0.7]
[1763256506800,2.79924176,139.06,139.04,7.19217491]
[1763256507280,2.79924176,139.07,139.05,0.7]
[1763256507474,2.79924176,139.07,139.04,15.73217491]
[1763256507679,3.45924176,139.07,139.04,16.43217491]
[1763256511686,2.79924176,139.07,139.05,0.7]
[1763256512787,2.79924176,139.11,139.06,11.33924176]
[1763256513100,2.79924176,139.11,139.07,2.79924176]
[1763256513302,9.98757548,139.12,139.08,8.54]
[1763256513586,10.64757548,139.12,139.08,19.22897783]
[1763256513773,2.79924176,139.11,139.08,16.42973607]
[1763256513973,3.45924176,139.11,139.08,16.42973607]
[1763256514379,2.79924176,139.1,139.08,8.54]
[1763256514575,2.79924176,139.09,139.08,8.54]
[1763256515171,3.45924176,139.1,139.08,8.54]
[1763256515487,7.18823091,139.12,139.08,8.54]
[1763256515670,2.79924176,139.1,139.08,16.42992863]
[1763256516294,2.79924176,139.09,139.08,8.54]
[1763256516795,3.45924176,139.1,139.08,8.54]
[1763256517680,2.79924176,139.11,139.09,0.7]
[1763256517879,0.66,139.11,139.08,16.43004103]
[1763256518180,9.98739143,139.12,139.08,15.73004103]
[1763256518368,10.64739143,139.12,139.09,0.7]
[1763256519490,22.6512,139.14,139.1,8.54]
[1763256519491,7.84773839,139.13,139.1,8.54]
[1763256519678,3.45924176,139.12,139.1,8.54]
[1763256520564,10.64730871,139.12,139.1,8.54]
[1763256520972,3.45924176,139.12,139.1,8.54]
[1763256521599,29.83849205,139.14,139.1,15.72889339]
[1763256521781,2.79924176,139.13,139.11,0.7]
[1763256521969,2.79924176,139.13,139.1,15.72889339]
[1763256522170,3.45924176,139.13,139.1,16.42889339]
[1763256522796,2.79924176,139.13,139.1,16.42889339]
[1763256522979,2.79924176,139.13,139.11,0.7]
[1763256523592,2.79924176,139.13,139.1,15.72889339]
[1763256523792,2.79924176,139.11,139.1,8.54]
[1763256524296,3.46924176,139.11,139.1,8.54]
[1763256524693,2.79924176,139.12,139.1,8.54]
[1763256525099,3.46924176,139.12,139.1,8.54]
[1763256525597,7.85788097,139.13,139.1,9.24]
[1763256525897,2.79924176,139.12,139.1,9.24]
[1763256526413,2.79924176,139.13,139.11,0.7]
[1763256526573,106.99924176,139.15,139.12,8.54]
[1763256526779,114.85573967,139.15,139.12,8.54]
[1763256526996,114.85573967,139.15,139.12,9.24]
[1763256527376,2.79924176,139.16,139.13,0.7]
[1763256527694,2.79924176,139.14,139.12,9.24]
[1763256527876,7.85622272,139.16,139.09,0.7]
[1763256527877,2.79924176,139.13,139.09,0.7]
[1763256528082,2.79924176,139.12,139.1,8.54]
[1763256528278,2.79924176,139.11,139.1,8.54]
[1763256528482,2.79924176,139.12,139.1,9.24]
[1763256528780,2.79924176,139.13,139.1,9.24]
[1763256529492,15.72617453,139.16,139.1,15.7289482]
[1763256529689,2.79924176,139.13,139.11,0.7]
[1763256529885,2.79924176,139.12,139.1,30.13438545]
[1763256530096,2.79924176,139.12,139.1,15.72903626]
[1763256530276,2.79924176,139.14,139.11,0.7]
[1763256530471,0.67,139.19,139.13,2.79924176]
[1763256530681,3.46924176,139.2,139.15,2.79924176]
[1763256530879,0.67,139.2,139.15,21.84408141]
[1763256531079,2.79924176,139.19,139.16,0.7]
[1763256531406,3.46924176,139.2,139.17,7.18545663]
[1763256531897,2.79924176,139.2,139.18,0.7]
[1763256532105,16.39334292,139.22,139.18,0.7]
[1763256532401,0.67,139.22,139.18,9.24]
[1763256532702,3.46924176,139.22,139.18,9.24]
[1763256532903,10.65216252,139.22,139.19,0.7]
[1763256533308,2.79924176,139.2,139.18,8.54]
[1763256533516,2.79924176,139.2,139.18,9.24]
[1763256534319,2.79924176,139.21,139.18,16.42493713]
[1763256534808,2.79924176,139.21,139.18,9.24]
[1763256534985,3.46924176,139.21,139.18,16.42493091]
[1763256535185,2.79924176,139.21,139.18,16.42493091]
[1763256535891,0.67,139.21,139.18,16.42493091]
[1763256536200,2.79924176,139.2,139.18,8.54]
[1763256536380,3.46924176,139.2,139.18,8.54]
[1763256536578,22.8512,139.24,139.19,3.49924176]
[1763256536782,0.2,139.24,139.23,22.6512]
[1763256537117,3.66924176,139.24,139.18,9.98399947]
[1763256537405,22.6512,139.23,139.19,8.54]
[1763256537613,0.2,139.24,139.2,9.78882769]
[1763256537780,0.2,139.24,139.22,7.18287602]
[1763256538106,0.2,139.24,139.23,18.32882769]
[1763256538305,0.2,139.24,139.23,19.02882769]
[1763256538509,0.2,139.26,139.25,12.58806945]
[1763256538712,0.2,139.26,139.25,18.32882769]
[1763256538883,0.2,139.26,139.25,19.02882769]
[1763256540614,0.87,139.26,139.25,8.54]
[1763256540794,3.66924176,139.26,139.25,8.54]
[1763256540991,2.99924176,139.26,139.25,8.54]
[1763256541205,0.2,139.26,139.25,8.54]
[1763256541396,0.2,139.26,139.25,9.24]
[1763256541978,10.85005462,139.26,139.21,7.18333707]
[1763256542183,2.79924176,139.23,139.21,16.42333707]
[1763256542513,2.79924176,139.23,139.21,8.54]
[1763256542720,3.46924176,139.22,139.15,21.9530232]
[1763256542879,2.79924176,139.19,139.16,20.09005462]
[1763256543085,2.79924176,139.19,139.17,9.78882769]
[1763256543304,2.79924176,139.2,139.18,8.54]
[1763256543703,22.6512,139.23,139.19,9.78882769]
[1763256543905,22.6512,139.23,139.2,8.54]
[1763256543906,2.79924176,139.23,139.2,8.54]
[1763256544104,2.79924176,139.22,139.2,8.54]
[1763256544325,2.79924176,139.22,139.2,9.24]
[1763256544491,3.46924176,139.21,139.17,30.53644038]
[1763256544693,2.79924176,139.2,139.18,18.32882769]
[1763256544896,2.79924176,139.2,139.18,19.02882769]
[1763256545808,0.67,139.22,139.18,18.32882769]
[1763256546005,2.79924176,139.21,139.19,0.7]
[1763256546189,2.79924176,139.21,139.18,18.32882769]
[1763256546384,2.79924176,139.2,139.18,18.32882769]
[1763256546598,3.46924176,139.21,139.18,26.21361695]
[1763256546802,2.79924176,139.21,139.18,26.21361695]
[1763256547001,0.2,139.26,139.21,9.78882769]
[1763256547307,0.2,139.26,139.23,9.78882769]
[1763256547518,3.66924176,139.26,139.23,9.78882769]
[1763256547821,2.79924176,139.25,139.22,11.41655963]
[1763256548123,3.66924176,139.26,139.23,7.88197314]
[1763256548419,3.66924176,139.26,139.24,8.54]
[1763256548597,2.99924176,139.26,139.24,8.54]
[1763256548791,0.2,139.26,139.24,8.54]
[1763256549219,0.2,139.26,139.24,11.41655963]
[1763256549586,0.2,139.26,139.24,12.11655963]
[1763256550222,0.2,139.26,139.24,19.29806433]
[1763256550398,0.2,139.26,139.24,18.59806433]
[1763256550608,0.2,139.26,139.24,19.29806433]
[1763256550914,0.2,139.26,139.25,10.48882769]
[1763256551120,0.2,139.26,139.25,21.82806945]
[1763256551491,0.2,139.26,139.25,19.02882769]
[1763256552425,0.2,139.26,139.25,26.21015623]
[1763256553698,0.2,139.26,139.25,29.00939799]
[1763256554420,0.2,139.27,139.25,54.45983975]
[1763256554616,0.2,139.27,139.26,13.24806945]
[1763256556297,0.2,139.28,139.27,7.18029726]
[1763256556518,0.2,139.28,139.27,19.17953902]
[1763256558899,0.2,139.28,139.27,16.38029726]
[1763256559217,0.2,139.28,139.27,19.17953902]
[1763256559622,0.2,139.31,139.29,12.58806945]
[1763256559824,0.2,139.31,139.3,18.32882769]
[1763256560901,0.2,139.31,139.3,18.98882769]
[1763256561202,0.2,139.31,139.3,18.32882769]
[1763256561508,0.2,139.31,139.3,25.50757858]
[1763256562027,0.2,139.31,139.3,26.16757858]
[1763256562518,0.2,139.31,139.3,25.50757858]
[1763256562724,0.2,139.31,139.3,18.32882769]
[1763256563229,0.2,139.31,139.3,25.50757858]
[1763256563432,0.2,139.31,139.3,26.16757858]
[1763256563928,0.2,139.31,139.3,8.54]
[1763256564115,3.70924176,139.31,139.3,8.54]
[1763256565138,3.70924176,139.31,139.28,8.54]
[1763256565139,10.88754717,139.31,139.28,8.54]
[1763256565315,2.79924176,139.29,139.28,8.54]
[1763256565817,3.50924176,139.29,139.28,8.54]
[1763256566135,3.50924176,139.29,139.26,8.54]
[1763256566315,3.50924176,139.28,139.26,8.54]
[1763256567006,2.49494732,139.28,139.26,8.54]
[1763256568125,1.78494732,139.27,139.26,8.54]
[1763256568329,2.49494732,139.27,139.26,8.54]
[1763256568509,2.49494732,139.27,139.24,8.54]
[1763256568824,2.49494732,139.26,139.24,8.54]
[1763256569123,2.49494732,139.26,139.24,15.72182833]
[1763256569525,2.49494732,139.26,139.24,8.54]
[1763256569711,2.49494732,139.25,139.24,8.54]
[1763256570427,2.49494732,139.25,139.22,8.54]
[1763256570609,2.49494732,139.24,139.22,8.54]
[1763256571016,2.49494732,139.24,139.22,15.72282185]
[1763256572033,2.49494732,139.24,139.22,8.54]
[1763256572330,2.49494732,139.24,139.22,15.72280918]
[1763256577842,1.78494732,139.27,139.24,7.18184429]
[1763256578040,2.49494732,139.27,139.25,8.54]
[1763256579141,106.69494732,139.29,139.25,8.54]
[1763256579367,1.78494732,139.29,139.26,0.66]
[1763256579529,1.78494732,139.29,139.27,8.54]
[1763256579736,2.49494732,139.3,139.27,8.54]
[1763256580144,1.78494732,139.29,139.27,8.54]
[1763256580320,2.49494732,139.29,139.27,8.54]
[1763256584340,1.78494732,139.28,139.27,8.54]
[1763256586150,2.47494732,139.29,139.27,8.54]
[1763256590047,2.47494732,139.28,139.25,8.54]
[1763256590227,1.78494732,139.26,139.25,8.54]
[1763256590626,2.47494732,139.26,139.25,8.54]
[1763256590832,9.65576018,139.26,139.25,8.54]
[1763256591047,9.65576018,139.26,139.23,8.54]
[1763256591353,2.47494732,139.25,139.23,8.54]
[1763256591939,1.78494732,139.25,139.23,9.25]
[1763256592343,1.78494732,139.24,139.23,8.54]
[1763256595529,2.47494732,139.24,139.23,8.54]
[1763256595730,2.47494732,139.24,139.19,0.71]
[1763256595963,1.78494732,139.2,139.16,25.15025282]
[1763256596160,1.78494732,139.18,139.17,8.54]
[1763256596458,1.78494732,139.18,139.15,8.54]
[1763256596643,1.78494732,139.16,139.15,8.54]
[1763256596851,1.78494732,139.17,139.15,9.25]
[1763256597157,1.78494732,139.17,139.15,15.72606017]
[1763256597659,1.78494732,139.17,139.15,16.43606017]
[1763256598140,1.78494732,139.19,139.16,0.71]
[1763256598460,1.78494732,139.21,139.17,10.32494732]
[1763256598759,0.69,139.21,139.17,10.32494732]
[1763256598960,0.69,139.21,139.18,0.71]
[1763256599260,0.69,139.21,139.19,15.72442416]
[1763256599458,2.47494732,139.22,139.19,15.72442416]
[1763256599661,1.78494732,139.22,139.19,16.43442416]
[1763256599860,2.47494732,139.22,139.19,15.72442416]
[1763256600163,2.47494732,139.22,139.19,16.43442416]
[1763256600363,1.78494732,139.22,139.2,0.71]
[1763256600937,9.23,139.25,139.2,0.71]
[1763256601142,2.47494732,139.24,139.21,8.54]
[1763256601337,1.78494732,139.23,139.21,8.54]
[1763256601549,1.78494732,139.22,139.21,8.54]
[1763256601750,2.47494732,139.22,139.21,8.54]
[1763256601947,2.47494732,139.22,139.19,15.72412696]
[1763256602262,1.78494732,139.2,139.17,8.54]
[1763256602467,1.78494732,139.18,139.17,8.54]
[1763256602941,2.47494732,139.18,139.17,8.54]
[1763256603564,2.47494732,139.18,139.15,8.54]
[1763256603763,1.78494732,139.16,139.12,7.89770472]
[1763256603951,1.78494732,139.14,139.11,7.18836473]
[1763256604151,1.78494732,139.14,139.1,18.68155564]
[1763256604152,1.78494732,139.12,139.09,7.18938063]
[1763256604344,1.78494732,139.1,139.08,0.1]
[1763256604547,1.78494732,139.11,139.09,8.54]
[1763256604940,5.03910989,139.11,139.09,8.54]
[1763256608158,0.69,139.11,139.09,15.72954241]
[1763256608365,0.69,139.14,139.1,5.05910989]
[1763256608542,4.34910989,139.15,139.11,9.25]
[1763256608750,5.03910989,139.15,139.11,13.59910989]
[1763256608949,4.34910989,139.16,139.12,5.05910989]
[1763256609254,4.34910989,139.17,139.13,12.88910989]
[1763256609453,4.34910989,139.17,139.14,7.18700589]
[1763256609758,5.03910989,139.16,139.13,8.54]
[1763256610271,4.34910989,139.17,139.13,15.72740793]
[1763256610465,5.03910989,139.17,139.13,20.78651782]
[1763256610652,5.03910989,139.17,139.13,20.07651782]
[1763256610846,5.03910989,139.17,139.13,20.78651782]
[1763256611575,11.534567,139.17,139.13,9.25]
[1763256611785,5.03910989,139.16,139.13,8.54]
[1763256611955,5.03910989,139.16,139.13,9.25]
[1763256611956,4.34910989,139.16,139.13,9.25]
[1763256612271,5.03910989,139.21,139.15,14.13793758]
[1763256612580,5.03910989,139.21,139.16,13.59910989]
[1763256612756,4.34910989,139.22,139.17,14.84793758]
[1763256612951,5.01910989,139.22,139.18,9.22]
[1763256613486,4.34910989,139.19,139.16,8.54]
[1763256613888,5.01910989,139.18,139.16,8.54]
[1763256614064,4.34910989,139.17,139.16,8.54]
[1763256614866,0.67,139.18,139.16,8.54]
[1763256615071,5.01910989,139.18,139.16,8.54]
[1763256615286,0.67,139.18,139.16,8.54]
[1763256615487,5.01910989,139.18,139.16,8.54]
[1763256616188,11.53411476,139.18,139.16,8.54]
[1763256616482,11.53411476,139.18,139.13,8.54]
[1763256616483,5.01910989,139.17,139.13,8.54]
[1763256616687,4.34910989,139.15,139.13,8.54]
[1763256617075,5.01910989,139.15,139.13,8.54]
[1763256618381,4.34910989,139.16,139.14,0.69]
[1763256618590,4.34910989,139.18,139.14,0.69]
[1763256618793,5.01910989,139.18,139.14,0.69]
[1763256618978,5.01910989,139.17,139.14,0.69]
[1763256619473,4.34910989,139.15,139.13,8.54]
[1763256619675,0.67,139.16,139.13,8.54]
[1763256619676,4.34910989,139.14,139.13,8.54]
[1763256619985,5.01910989,139.15,139.13,8.54]
[1763256620590,5.01910989,139.14,139.13,8.54]
[1763256621197,104.2,139.19,139.13,16.4175134]
[1763256621409,4.34910989,139.18,139.14,22.01447088]
[1763256621593,4.34910989,139.17,139.15,8.54]
[1763256621899,5.01910989,139.2,139.15,13.57910989]
[1763256622083,0.67,139.22,139.16,5.03910989]
[1763256622271,0.67,139.22,139.17,22.67793758]
[1763256622272,5.01910989,139.22,139.17,22.67793758]
[1763256622468,5.01910989,139.22,139.18,4.34910989]
[1763256622675,4.34910989,139.25,139.2,14.13793758]
[1763256622970,4.34910989,139.25,139.21,12.90910989]
[1763256623295,5.01910989,139.25,139.21,8.56]
[1763256623599,7.85196515,139.24,139.21,8.56]
[1763256623800,5.01910989,139.23,139.21,8.56]
[1763256625698,0.67,139.22,139.21,8.56]
[1763256625907,5.01910989,139.22,139.19,8.56]
[1763256626204,0.67,139.21,139.19,8.56]
[1763256627201,14.76354806,139.23,139.19,15.47106511]
[1763256627496,0.67,139.22,139.19,15.47106511]
[1763256628798,14.76399098,139.22,139.19,8.56]
[1763256629202,0.67,139.21,139.19,8.56]
[1763256629501,6.91106511,139.2,139.14,7.1867291]
[1763256629802,6.91106511,139.19,139.14,23.32779421]
[1763256630097,14.09557721,139.19,139.14,23.32779421]
[1763256630304,0.67,139.18,139.14,23.32779421]
[1763256630805,7.58106511,139.18,139.14,34.38424383]
[1763256631006,6.91106511,139.18,139.15,0.69]
[1763256631893,7.58106511,139.18,139.15,0.69]
[1763256632099,7.58106511,139.18,139.14,15.7267291]
[1763256632313,6.91106511,139.16,139.14,8.54]
[1763256632486,0.67,139.17,139.14,8.54]
[1763256632487,6.91106511,139.15,139.14,8.54]
[1763256633206,7.58106511,139.16,139.14,15.72689163]
[1763256633692,0.67,139.16,139.14,15.72689163]
[1763256634604,6.91106511,139.18,139.15,0.69]
[1763256635000,7.58106511,139.18,139.16,8.54]
[1763256635405,6.91106511,139.19,139.16,8.54]
[1763256635720,7.58106511,139.19,139.16,8.54]
[1763256636308,7.58106511,139.19,139.16,15.72568515]
[1763256636487,7.58106511,139.19,139.16,16.41568515]
[1763256636812,6.91106511,139.19,139.16,15.72568515]
[1763256637001,7.58106511,139.19,139.16,15.72568515]
[1763256637921,0.67,139.18,139.16,15.72568515]
[1763256638333,6.91106511,139.19,139.16,15.72568515]
[1763256638619,6.91106511,139.21,139.17,0.69]
[1763256638787,6.91106511,139.21,139.18,8.54]
[1763256638982,6.91106511,139.2,139.18,8.54]
[1763256639186,6.91106511,139.19,139.18,8.54]
[1763256639381,7.58106511,139.19,139.18,8.54]
[1763256640208,6.91106511,139.19,139.18,8.54]
[1763256640923,7.58106511,139.19,139.18,8.54]
[1763256641410,7.58106511,139.19,139.17,8.54]
[1763256641924,6.91106511,139.18,139.14,6.91106511]
[1763256642102,6.91106511,139.17,139.15,8.54]
[1763256642296,7.58106511,139.17,139.15,8.54]
[1763256642499,6.91106511,139.17,139.15,8.54]
[1763256642910,6.91106511,139.17,139.15,15.72637404]
[1763256643901,6.91106511,139.17,139.15,8.54]
[1763256644406,6.91106511,139.19,139.15,16.41643324]
[1763256644611,7.63106511,139.19,139.15,15.72643324]
[1763256644824,7.63106511,139.19,139.15,16.41643324]
[1763256645119,6.91106511,139.2,139.16,10.47882769]
[1763256645320,6.91106511,139.2,139.17,8.54]
[1763256645617,7.63106511,139.2,139.17,8.54]
[1763256645804,7.63106511,139.2,139.17,9.23]
[1763256646112,7.63106511,139.2,139.17,16.41518435]
[1763256646715,7.63106511,139.2,139.17,9.23]
[1763256646935,7.63106511,139.2,139.17,8.54]
[1763256647126,7.63106511,139.2,139.17,15.72537533]
[1763256647594,7.63106511,139.2,139.17,16.41537533]
[1763256648922,3.51223572,139.2,139.17,16.41537533]
[1763256649924,10.69614885,139.2,139.17,15.72537533]
[1763256650107,2.79223572,139.19,139.17,15.72537533]
[1763256651330,0.72,139.18,139.17,8.54]
[1763256651512,3.51223572,139.18,139.17,8.54]
[1763256651718,3.51223572,139.18,139.15,15.72611861]
[1763256652029,2.79223572,139.16,139.15,7.18611861]
[1763256652232,3.51223572,139.17,139.15,15.72611861]
[1763256652738,2.79223572,139.18,139.15,16.41611861]
[1763256652924,3.51223572,139.18,139.15,16.41611861]
[1763256653510,2.79223572,139.18,139.15,15.72611861]
[1763256653830,10.69631832,139.2,139.16,0.69]
[1763256654029,7.90358732,139.21,139.17,8.54]
[1763256654327,2.79223572,139.2,139.17,8.54]
[1763256654534,3.51223572,139.2,139.17,8.54]
[1763256655415,2.79223572,139.19,139.17,8.54]
[1763256659545,3.51223572,139.18,139.17,8.54]
[1763256659746,3.51223572,139.18,139.07,35.95056594]
[1763256659957,2.79223572,139.14,139.11,0.69]
[1763256660128,2.79223572,139.12,139.09,7.18958947]
[1763256660449,2.79223572,139.1,139.08,0.1]
[1763256660652,2.79223572,139.09,139.08,0.1]
[1763256660819,2.79223572,139.12,139.08,9.33]
[1763256661020,3.51223572,139.13,139.09,9.78882769]
[1763256661237,3.51223572,139.13,139.09,0.69]
[1763256661238,2.79223572,139.12,139.09,0.69]
[1763256661421,2.79223572,139.12,139.08,15.83004416]
[1763256661422,2.79223572,139.11,139.08,8.64]
[1763256661634,2.79223572,139.11,139.08,16.52004366]
[1763256662037,2.79223572,139.12,139.09,0.69]
[1763256662222,2.79223572,139.13,139.1,8.54]
[1763256662554,0.72,139.14,139.1,8.54]
[1763256662744,3.51223572,139.13,139.1,8.54]
[1763256663045,2.79223572,139.16,139.12,2.79223572]
[1763256663249,104.2,139.21,139.11,0.69]
[1763256663250,3.51223572,139.2,139.15,2.79223572]
[1763256663429,0.72,139.19,139.15,12.02223572]
[1763256663622,2.79223572,139.2,139.16,7.87597298]
[1763256664043,2.79223572,139.2,139.17,0.69]
[1763256664231,3.51223572,139.2,139.17,8.54]
[1763256664755,3.51223572,139.19,139.17,8.54]
[1763256664926,6.91570917,139.18,139.17,8.54]
[1763256665127,14.81971414,139.2,139.17,8.54]
[1763256665346,7.63570917,139.2,139.17,8.54]
[1763256665748,14.81968144,139.2,139.17,8.54]
[1763256665956,7.63570917,139.2,139.17,15.7254395]
[1763256666752,7.63570917,139.2,139.17,16.4154395]
[1763256666753,0.72,139.2,139.17,16.4154395]
[1763256667128,7.63570917,139.2,139.17,16.4154395]
[1763256667446,7.63570917,139.2,139.17,15.7254395]
[1763256669935,6.91570917,139.19,139.17,8.54]
[1763256670130,0.72,139.19,139.17,8.54]
[1763256670352,14.09973242,139.2,139.17,15.72533556]
[1763256670650,14.81973242,139.2,139.17,8.54]
[1763256672555,14.81973242,139.2,139.17,15.72530462]
[1763256672852,14.81973242,139.2,139.17,16.41530462]
[1763256673064,7.63570917,139.2,139.17,16.41530462]
[1763256673229,6.91570917,139.21,139.18,0.67]
[1763256673428,7.58570917,139.21,139.18,0.67]
[1763256673843,0.67,139.2,139.17,15.72530462]
[1763256674468,6.91570917,139.19,139.17,8.54]
[1763256674763,6.91570917,139.18,139.13,10.45882769]
[1763256674933,6.91570917,139.17,139.13,10.45882769]
[1763256675138,6.91570917,139.16,139.11,7.58570917]
[1763256675348,6.91570917,139.16,139.12,7.1880391]
[1763256675857,6.91570917,139.17,139.13,0.67]
[1763256676458,7.58570917,139.17,139.14,7.18700589]
[1763256676860,6.91570917,139.17,139.14,7.18700589]
[1763256677034,6.91570917,139.16,139.14,7.18700589]
[1763256678563,14.77134657,139.17,139.14,0.67]
[1763256678871,7.58570917,139.17,139.14,0.67]
[1763256679038,6.91570917,139.2,139.16,6.91570917]
[1763256679237,6.91570917,139.21,139.17,6.91570917]
[1763256679442,6.91570917,139.21,139.16,6.91570917]
[1763256679848,7.58570917,139.21,139.17,0.67]
[1763256680041,0.67,139.24,139.18,6.91570917]
[1763256680244,6.91570917,139.23,139.18,6.91570917]
[1763256680645,14.76832278,139.23,139.19,7.85442416]
[1763256681269,0.67,139.22,139.19,7.85442416]
[1763256681471,7.58570917,139.22,139.19,7.85442416]
[1763256681666,7.58570917,139.22,139.16,16.97463956]
[1763256681667,6.91570917,139.2,139.16,16.97463956]
[1763256681972,6.91570917,139.2,139.16,7.18581187]
[1763256682280,7.58570917,139.2,139.16,7.85581187]
[1763256683543,7.58570917,139.19,139.15,7.18624541]
[1763256683856,6.91570917,139.18,139.15,7.85624541]
[1763256684866,2.79277088,139.18,139.15,7.85624541]
[1763256685466,7.85456203,139.19,139.15,7.85624541]
[1763256685666,10.64733291,139.19,139.15,7.85624541]
[1763256688975,9.64177762,139.19,139.15,7.85624541]
[1763256691365,2.45721559,139.18,139.14,1.78721559]
[1763256691679,2.45721559,139.18,139.13,8.97438491]
[1763256691886,1.78721559,139.17,139.15,0.67]
[1763256692677,2.45721559,139.18,139.15,0.67]
[1763256693579,9.64231426,139.18,139.15,0.67]
[1763256693776,9.64231426,139.18,139.14,0.67]
[1763256693982,1.78721559,139.17,139.14,0.67]